[Event "EYTCC U18 Open 2019"]
[Site "Pardubice"]
[Date "2019.07.11"]
[Round "1.31"]
[White "Tsaruk, Maksim"]
[Black "Parvanyan, Ashot"]
[Result "0-1"]
[ECO "C06"]
[WhiteElo "2230"]
[BlackElo "2423"]
[Annotator "NA"]
[PlyCount "98"]
[EventDate "2019.07.11"]
[EventType "swiss"]
[EventCountry "CZE"]
[SourceTitle "playchess.com"]
[Source "ChessBase"]
[SourceQuality "1"]
[WhiteTeam "Belarus"]
[BlackTeam "Germany"]
[WhiteTeamCountry "BLR"]
[BlackTeamCountry "GER"]
[TimeControl "40/5400+30:1800+30"]

1. e4 {[%emt 0:00:00]} e6 {[%emt 0:00:00]} 2. d4 {[%emt 0:00:00]} d5 {[%emt 0:00:00]} 3. Nd2 {[%emt 0:00:00]} Nf6 {[%emt 0:00:12]} 4. e5 {[%emt 0:00:01]} Nfd7 {[%emt 0:00:08]} 5. c3 {[%emt 0:00:08]} c5 {[%emt 0:00:05]} 6. Bd3 {[%emt 0:00:05]} Nc6 {[%emt 0:02:08]} 7. Ne2 {[%emt 0:00:09]} cxd4 {[%emt 0:00:57]} 8. cxd4 {[%emt 0:00:04]} f6 {[%emt 0:00:07]} 9. exf6 {[%emt 0:00:05]} Nxf6 {[%emt 0:00:05]} 10. O-O {[%emt 0:00:12]} Bd6 {[%emt 0:00:08]} 11. Nf3 {[%emt 0:00:08]} Qc7 {[%emt 0:00:37]} 12. h3 {[%emt 0:00:18]} O-O {[%emt 0:00:52]} 13. Be3 {[%emt 0:00:05]} Bd7 {[%emt 0:01:18]} 14. Rc1 {[%emt 0:00:07]} Be8 {[%emt 0:02:24]} 15. Ng5 {[%emt 0:00:28]} Qe7 {[%emt 0:01:06]} 16. Nf4 {[%emt 0:35:17]} Bxf4 {[%emt 0:02:42]} 17. Bxf4 {[%emt 0:00:38]} Ne4 {[%emt 0:00:40]} 18. Bxe4 {[%emt 0:06:33]} Rxf4 {[%emt 0:01:02]} 19. Bxh7+ {[%emt 0:00:53]} Kh8 {[%emt 0:02:27]} 20. h4 {[%emt 0:01:05]} Rxh4 {[%emt 0:10:09]} 21. Qd2 {[%emt 0:17:13]} Rxh7 {[%emt 0:20:23]} 22. Nxh7 {[%emt 0:00:07]} Kxh7 {[%emt 0:00:07]} 23. Rc3 {[%emt 0:02:45]} Bg6 {[%emt 0:03:21]} 24. Qf4 {[%emt 0:03:32]} Rf8 {[%emt 0:04:08]} 25. Rh3+ {[%emt 0:00:08]} Kg8 {[%emt 0:00:05]} 26. Qh2 {[%emt 0:00:04]} Bf5 {[%emt 0:15:03]} 27. Rh8+ {[%emt 0:02:07]} Kf7 {[%emt 0:00:05]} 28. Qh5+ {[%emt 0:00:05]} Bg6 {[%emt 0:00:28]} 29. Rxf8+ {[%emt 0:00:47]} Qxf8 {[%emt 0:00:06]} 30. Qf3+ {[%emt 0:00:03]} Kg8 {[%emt 0:01:29]} 31. Qxf8+ {[%emt 0:16:48]} Kxf8 {[%emt 0:00:05]} 32. Rd1 {[%emt 0:00:04]} Ke7 {[%emt 0:02:37]} 33. f3 {[%emt 0:10:10]} Nb4 {[%emt 0:02:40]} 34. a3 {[%emt 0:00:26]} Nc2 {[%emt 0:01:46]} 35. Kf2 {[%emt 0:01:41]} Kd6 {[%emt 0:00:21]} 36. f4 {[%emt 0:02:01]} Kc6 {[%emt 0:01:40]} 37. g4 {[%emt 0:01:32]} Be4 {[%emt 0:02:02]} 38. Kg3 {[%emt 0:02:12]} Kb5 {[%emt 0:00:19]} 39. Rd2 {[%emt 0:00:52]} Kc4 {[%emt 0:00:23]} 40. Rh2 {[%emt 0:00:26]} Nxd4 {[%emt 0:00:48]} 41. Kf2 {[%emt 0:30:06]} Nf3 {[%emt 0:40:33]} 42. Rh8 {[%emt 0:00:00]} d4 {[%emt 0:00:00]} 43. Re8 {[%emt 0:00:00]} d3 {[%emt 0:00:00]} 44. Rxe6 {[%emt 0:00:00]} d2 {[%emt 0:00:00]} 45. Rxe4+ {[%emt 0:00:00]} Nd4 {[%emt 0:00:00]} 46. b3+ {[%emt 0:00:00]} Kd5 {[%emt 0:00:00]} 47. Rxd4+ {[%emt 0:00:00]} Kxd4 {[%emt 0:00:00]} 48. Ke2 {[%emt 0:00:00]} Ke4 {[%emt 0:00:00]} 49. f5 {[%emt 0:00:00]} Ke5 0-1

[Event "EYTCC U18 Open 2019"]
[Site "Pardubice"]
[Date "2019.07.11"]
[Round "1.32"]
[White "Krastev, Alexander"]
[Black "Runets, Ivan"]
[Result "1/2-1/2"]
[ECO "B31"]
[WhiteElo "2325"]
[BlackElo "2239"]
[Annotator "NA"]
[PlyCount "120"]
[EventDate "2019.07.11"]
[EventType "swiss"]
[EventCountry "CZE"]
[SourceTitle "playchess.com"]
[Source "ChessBase"]
[SourceQuality "1"]
[WhiteTeam "Germany"]
[BlackTeam "Belarus"]
[WhiteTeamCountry "GER"]
[BlackTeamCountry "BLR"]
[TimeControl "40/5400+30:1800+30"]

1. e4 {[%emt 0:00:00]} c5 {[%emt 0:00:00]} 2. Nf3 {[%emt 0:00:00]} Nc6 {[%emt 0:00:00]} 3. Bb5 {[%emt 0:00:47]} g6 {[%emt 0:00:09]} 4. Bxc6 {[%emt 0:00:37]} dxc6 {[%emt 0:00:13]} 5. d3 {[%emt 0:00:06]} Bg7 {[%emt 0:00:09]} 6. O-O {[%emt 0:00:21]} b6 {[%emt 0:03:17]} 7. h3 {[%emt 0:01:40]} e5 {[%emt 0:00:33]} 8. Be3 {[%emt 0:00:47]} Ne7 {[%emt 0:00:38]} 9. Nbd2 {[%emt 0:01:31]} O-O {[%emt 0:00:07]} 10. a3 {[%emt 0:01:00]} a5 {[%emt 0:03:41]} 11. Qe2 {[%emt 0:04:40]} f6 {[%emt 0:05:32]} 12. Nc4 {[%emt 0:15:56]} Be6 {[%emt 0:02:37]} 13. b3 {[%emt 0:03:42]} Qc7 {[%emt 0:08:14]} 14. a4 {[%emt 0:03:32]} g5 {[%emt 0:04:06]} 15. Nfd2 {[%emt 0:30:29]} Ng6 {[%emt 0:02:28]} 16. Kh2 {[%emt 0:02:31]} Rab8 {[%emt 0:10:32]} 17. g4 {[%emt 0:08:06]} Rf7 {[%emt 0:13:59]} 18. f3 {[%emt 0:03:11]} Bf8 {[%emt 0:00:34]} 19. Qf2 {[%emt 0:01:20]} h6 {[%emt 0:05:12]} 20. Rh1 {[%emt 0:03:01]} Rh7 {[%emt 0:03:57]} 21. Qg3 {[%emt 0:13:12]} h5 {[%emt 0:01:20]} 22. Kg2 {[%emt 0:00:29]} Rd8 {[%emt 0:08:01]} 23. Kf2 {[%emt 0:00:45]} Rdd7 {[%emt 0:04:00]} 24. Rh2 {[%emt 0:00:35]} Rh8 {[%emt 0:00:34]} 25. Rah1 {[%emt 0:00:33]} Nh4 {[%emt 0:07:14]} 26. Nf1 {[%emt 0:01:56]} Rdh7 {[%emt 0:01:39]} 27. Bd2 {[%emt 0:00:30]} Qd8 {[%emt 0:01:29]} 28. Nfe3 {[%emt 0:01:04]} Ng6 {[%emt 0:01:20]} 29. Nf5 {[%emt 0:01:00]} b5 {[%emt 0:06:33]} 30. Nxa5 {[%emt 0:00:58]} c4 {[%emt 0:00:05]} 31. bxc4 {[%emt 0:00:37]} bxc4 {[%emt 0:00:12]} 32. d4 {[%emt 0:00:30]} Qb6 {[%emt 0:01:55]} 33. gxh5 {[%emt 0:00:32]} Rxh5 {[%emt 0:00:10]} 34. h4 {[%emt 0:00:27]} Bxf5 {[%emt 0:00:55]} 35. exf5 {[%emt 0:00:08]} Nxh4 {[%emt 0:00:21]} 36. Qg4 {[%emt 0:00:52]} c3 {[%emt 0:01:05]} 37. Bxc3 {[%emt 0:00:04]} exd4 {[%emt 0:01:14]} 38. Nc4 {[%emt 0:00:21]} Qc5 {[%emt 0:00:19]} 39. Qxd4 {[%emt 0:00:41]} Qxf5 {[%emt 0:00:32]} 40. Qd3 {[%emt 0:00:53]} Bc5+ {[%emt 0:03:40]} 41. Kf1 {[%emt 0:01:15]} Qxd3+ {[%emt 0:16:57]} 42. cxd3 {[%emt 0:00:11]} Kf7 {[%emt 0:01:07]} 43. f4 {[%emt 0:06:49]} Rd8 {[%emt 0:06:21]} 44. fxg5 {[%emt 0:02:28]} fxg5 {[%emt 0:00:20]} 45. Ke2 {[%emt 0:02:36]} Rh6 {[%emt 0:04:26]} 46. Rf1+ {[%emt 0:05:06]} Kg8 {[%emt 0:01:31]} 47. Rf6 {[%emt 0:07:36]} Rxf6 {[%emt 0:00:29]} 48. Bxf6 {[%emt 0:00:05]} Be7 {[%emt 0:00:16]} 49. Bxe7 {[%emt 0:04:22]} Re8 {[%emt 0:00:02]} 50. a5 {[%emt 0:00:06]} Rxe7+ {[%emt 0:00:03]} 51. Kd1 {[%emt 0:00:05]} Kg7 {[%emt 0:01:28]} 52. a6 {[%emt 0:01:14]} Ra7 {[%emt 0:00:41]} 53. Ra2 {[%emt 0:00:06]} Nf5 {[%emt 0:01:00]} 54. Ne5 {[%emt 0:01:41]} Ne7 {[%emt 0:00:33]} 55. Ke2 {[%emt 0:01:41]} Kf6 {[%emt 0:00:41]} 56. Ra5 {[%emt 0:00:23]} Ke6 {[%emt 0:00:40]} 57. Kf3 {[%emt 0:00:38]} Kd6 {[%emt 0:01:09]} 58. Nc4+ {[%emt 0:01:19]} Kc7 {[%emt 0:00:21]} 59. Kg4 {[%emt 0:00:16]} Nd5 {[%emt 0:00:39]} 60. Ra4 {[%emt 0:01:43]} Nb6 {[%emt 0:00:36]} 1/2-1/2

[Event "EYTCC U18 Open 2019"]
[Site "Pardubice"]
[Date "2019.07.11"]
[Round "1.33"]
[White "Gumularz, Szymon"]
[Black "Subelj, Jan"]
[Result "1/2-1/2"]
[ECO "C60"]
[WhiteElo "2502"]
[BlackElo "2425"]
[Annotator "ChessBase"]
[PlyCount "77"]
[EventDate "2019.07.11"]
[EventType "swiss"]
[EventCountry "CZE"]
[SourceTitle "playchess.com"]
[Source "ChessBase"]
[SourceQuality "1"]
[WhiteTeam "Poland"]
[BlackTeam "Slovenia"]
[WhiteTeamCountry "POL"]
[BlackTeamCountry "SLO"]
[TimeControl "40/5400+30:1800+30"]

1. e4 {[%emt 0:00:00]} e5 {[%emt 0:00:00]} 2. Nf3 {[%emt 0:00:00]} Nc6 {[%emt 0:00:10]} 3. Bb5 {[%emt 0:00:00]} g6 {[%emt 0:01:31]} 4. c3 {[%emt 0:00:40]} a6 {[%emt 0:00:20]} 5. Ba4 {[%emt 0:00:08]} Bg7 {[%emt 0:02:05]} 6. d4 {[%emt 0:00:08]} b5 {[%emt 0:02:03]} 7. Bc2 {[%emt 0:00:39]} d6 {[%emt 0:00:22]} 8. a4 {[%emt 0:03:00]} Rb8 {[%emt 0:11:46]} 9. axb5 {[%emt 0:10:04]} axb5 {[%emt 0:00:18]} 10. h3 {[%emt 0:06:12]} Bd7 {[%emt 0:13:27]} 11. Be3 {[%emt 0:02:00]} Nf6 {[%emt 0:03:37]} 12. Nbd2 {[%emt 0:00:11]} O-O {[%emt 0:01:22]} 13. O-O {[%emt 0:00:48]} Re8 {[%emt 0:21:11]} 14. Re1 {[%emt 0:07:11]} b4 {[%emt 0:04:26]} 15. d5 {[%emt 0:06:08]} Ne7 {[%emt 0:00:22]} 16. c4 {[%emt 0:02:23]} c5 {[%emt 0:06:41]} 17. dxc6 {[%emt 0:00:35]} Bxc6 {[%emt 0:00:39]} 18. Ba4 {[%emt 0:15:04]} Qc7 {[%emt 0:02:39]} 19. Bxc6 {[%emt 0:02:27]} Nxc6 {[%emt 0:03:52]} 20. Ra6 {[%emt 0:02:40]} b3 {[%emt 0:06:17]} 21. Qa1 {[%emt 0:01:37]} Nb4 {[%emt 0:00:21]} 22. Ra7 {[%emt 0:02:18]} Qc6 {[%emt 0:08:21]} 23. Qa4 {[%emt 0:05:23]} Qxa4 {[%emt 0:00:05]} 24. Rxa4 {[%emt 0:00:04]} Nd3 {[%emt 0:00:17]} 25. Rb1 {[%emt 0:00:46]} Nd7 {[%emt 0:00:08]} 26. Ne1 {[%emt 0:13:02]} N3c5 {[%emt 0:01:01]} 27. Ra3 {[%emt 0:00:19]} f5 {[%emt 0:02:02]} 28. f3 {[%emt 0:02:23]} fxe4 {[%emt 0:02:08]} 29. fxe4 {[%emt 0:00:10]} Rec8 {[%emt 0:02:40]} 30. Rc1 {[%emt 0:04:01]} h5 {[%emt 0:02:13]} 31. Kf1 {[%emt 0:00:42]} Kh7 {[%emt 0:01:34]} 32. Ke2 {[%emt 0:01:21]} Bh6 {[%emt 0:00:05]} 33. Nef3 {[%emt 0:00:42]} Bxe3 {[%emt 0:00:57]} 34. Kxe3 {[%emt 0:00:02]} Rb4 {[%emt 0:00:11]} 35. Ng5+ {[%emt 0:00:40]} Kg7 {[%emt 0:00:31]} 36. Ra7 {[%emt 0:01:58]} Kf6 {[%emt 0:00:55]} 37. h4 {[%emt 0:00:21]} Ke7 {[%emt 0:00:20]} 38. Ngf3 {[%emt 0:11:12]} Kd8 {[%emt 0:00:51]} 39. Ng5 {[%emt 0:00:18]} 1/2-1/2

[Event "EYTCC U18 Open 2019"]
[Site "Pardubice"]
[Date "2019.07.11"]
[Round "1.34"]
[White "Stevanic, David"]
[Black "Teclaf, Pawel"]
[Result "0-1"]
[ECO "C11"]
[WhiteElo "2306"]
[BlackElo "2454"]
[Annotator "ChessBase"]
[PlyCount "148"]
[EventDate "2019.07.11"]
[EventType "swiss"]
[EventCountry "CZE"]
[SourceTitle "playchess.com"]
[Source "ChessBase"]
[SourceQuality "1"]
[WhiteTeam "Slovenia"]
[BlackTeam "Poland"]
[WhiteTeamCountry "SLO"]
[BlackTeamCountry "POL"]
[TimeControl "40/5400+30:1800+30"]

1. e4 {[%emt 0:00:00]} e6 {[%emt 0:00:00]} 2. d4 {[%emt 0:00:00]} d5 {[%emt 0:00:00]} 3. Nc3 {[%emt 0:00:00]} Nf6 {[%emt 0:00:00]} 4. e5 {[%emt 0:00:00]} Nfd7 {[%emt 0:00:00]} 5. f4 {[%emt 0:00:00]} c5 {[%emt 0:00:00]} 6. Nf3 {[%emt 0:00:01]} a6 {[%emt 0:00:00]} 7. Be3 {[%emt 0:00:50]} Qb6 {[%emt 0:00:06]} 8. a3 {[%emt 0:31:03]} Nc6 {[%emt 0:00:12]} 9. Na4 {[%emt 0:05:27]} Qa5+ {[%emt 0:01:38]} 10. Bd2 {[%emt 0:02:05]} Qc7 {[%emt 0:02:59]} 11. dxc5 {[%emt 0:05:48]} Nxc5 {[%emt 0:02:04]} 12. Nxc5 {[%emt 0:03:51]} Bxc5 {[%emt 0:00:06]} 13. Qe2 {[%emt 0:02:41]} b5 {[%emt 0:05:17]} 14. O-O-O {[%emt 0:07:37]} b4 {[%emt 0:07:49]} 15. a4 {[%emt 0:10:31]} b3 {[%emt 0:02:52]} 16. cxb3 {[%emt 0:00:38]} Rb8 {[%emt 0:04:48]} 17. Qd3 {[%emt 0:03:14]} Nb4 {[%emt 0:05:35]} 18. Bxb4 {[%emt 0:00:50]} Rxb4 {[%emt 0:05:59]} 19. Kb1 {[%emt 0:00:57]} Qb6 {[%emt 0:05:33]} 20. Ka2 {[%emt 0:01:01]} Bd7 {[%emt 0:13:21]} 21. Qxa6 {[%emt 0:10:28]} Qb8 {[%emt 0:03:43]} 22. Rc1 {[%emt 0:05:47]} Rb6 {[%emt 0:22:55]} 23. Qd3 {[%emt 0:01:10]} Be7 {[%emt 0:01:35]} 24. Nd4 {[%emt 0:02:55]} O-O {[%emt 0:01:05]} 25. Nb5 {[%emt 0:02:53]} Bxb5 {[%emt 0:03:31]} 26. axb5 {[%emt 0:00:06]} f6 {[%emt 0:02:51]} 27. Qe3 {[%emt 0:02:44]} fxe5 {[%emt 0:05:25]} 28. fxe5 {[%emt 0:00:24]} Qa7+ {[%emt 0:00:22]} 29. Kb1 {[%emt 0:00:04]} Ra8 {[%emt 0:00:21]} 30. Bd3 {[%emt 0:01:20]} Qa2+ {[%emt 0:00:50]} 31. Kc2 {[%emt 0:00:05]} Rc8+ {[%emt 0:01:27]} 32. Kd1 {[%emt 0:00:54]} Qxb3+ {[%emt 0:01:51]} 33. Ke2 {[%emt 0:00:11]} Qxb2+ {[%emt 0:00:21]} 34. Kf3 {[%emt 0:00:18]} Rf8+ {[%emt 0:00:16]} 35. Kg3 {[%emt 0:00:16]} d4 {[%emt 0:01:17]} 36. Qe4 {[%emt 0:00:58]} Qf2+ {[%emt 0:00:43]} 37. Kh3 {[%emt 0:00:04]} Rf5 {[%emt 0:00:29]} 38. Be2 {[%emt 0:01:09]} Rf4 {[%emt 0:00:39]} 39. Rc8+ {[%emt 0:00:24]} Bf8 {[%emt 0:00:24]} 40. Rxf8+ {[%emt 0:00:42]} Rxf8 {[%emt 0:00:41]} 41. Rf1 {[%emt 0:07:13]} Qe3+ {[%emt 0:02:12]} 42. Qxe3 {[%emt 0:00:07]} dxe3 {[%emt 0:00:03]} 43. Rxf8+ {[%emt 0:00:24]} Kxf8 {[%emt 0:00:04]} 44. Kg4 {[%emt 0:00:15]} Rb8 {[%emt 0:06:21]} 45. Kf4 {[%emt 0:01:13]} Rd8 {[%emt 0:02:32]} 46. Kxe3 {[%emt 0:01:43]} Rd5 {[%emt 0:03:41]} 47. Bc4 {[%emt 0:04:03]} Rxe5+ {[%emt 0:01:57]} 48. Kd4 {[%emt 0:00:06]} Re1 {[%emt 0:00:03]} 49. b6 {[%emt 0:00:32]} Ke7 {[%emt 0:00:29]} 50. b7 {[%emt 0:00:06]} Rb1 {[%emt 0:00:08]} 51. Ke5 {[%emt 0:00:05]} Rxb7 {[%emt 0:01:32]} 52. Bxe6 {[%emt 0:00:06]} Rb5+ {[%emt 0:01:58]} 53. Bd5 {[%emt 0:00:07]} g5 {[%emt 0:03:07]} 54. h3 {[%emt 0:10:57]} Ra5 {[%emt 0:01:37]} 55. Kd4 {[%emt 0:00:21]} Kf6 {[%emt 0:02:04]} 56. Bf3 {[%emt 0:00:46]} Ra4+ {[%emt 0:03:31]} 57. Kd5 {[%emt 0:03:35]} Kf5 {[%emt 0:01:04]} 58. Kd6 {[%emt 0:00:28]} Ra7 {[%emt 0:03:10]} 59. Bg4+ {[%emt 0:01:40]} Kf6 {[%emt 0:00:36]} 60. Bf3 {[%emt 0:00:43]} Re7 {[%emt 0:00:50]} 61. Bg4 {[%emt 0:04:21]} Re5 {[%emt 0:00:36]} 62. Kd7 {[%emt 0:01:03]} h6 {[%emt 0:01:57]} 63. Kd6 {[%emt 0:00:29]} Re3 {[%emt 0:00:43]} 64. Kd7 {[%emt 0:01:39]} Rd3+ {[%emt 0:01:13]} 65. Ke8 {[%emt 0:00:11]} Ra3 {[%emt 0:00:03]} 66. Bh5 {[%emt 0:00:44]} Ra7 {[%emt 0:00:52]} 67. Bf3 {[%emt 0:00:32]} Ke5 {[%emt 0:00:45]} 68. Kf8 {[%emt 0:00:13]} Kf4 {[%emt 0:00:11]} 69. Kg8 {[%emt 0:00:23]} Kg3 {[%emt 0:00:05]} 70. Kh8 {[%emt 0:00:42]} h5 {[%emt 0:00:10]} 71. Bxh5 {[%emt 0:00:45]} Kxg2 {[%emt 0:00:05]} 72. Bg4 {[%emt 0:00:03]} Kg3 {[%emt 0:00:03]} 73. Kg8 {[%emt 0:00:13]} Kh4 {[%emt 0:00:06]} 74. Kf8 {[%emt 0:00:12]} Ra3 {[%emt 0:00:03]} 0-1

[Event "EYTCC U18 Open 2019"]
[Site "Pardubice"]
[Date "2019.07.11"]
[Round "1.35"]
[White "Kosakowski, Jakub"]
[Black "Tisaj, Domen"]
[Result "1/2-1/2"]
[ECO "B32"]
[WhiteElo "2394"]
[BlackElo "2232"]
[Annotator "NA"]
[PlyCount "91"]
[EventDate "2019.07.11"]
[EventType "swiss"]
[EventCountry "CZE"]
[SourceTitle "playchess.com"]
[Source "ChessBase"]
[SourceQuality "1"]
[WhiteTeam "Poland"]
[BlackTeam "Slovenia"]
[WhiteTeamCountry "POL"]
[BlackTeamCountry "SLO"]
[TimeControl "40/5400+30:1800+30"]

1. e4 {[%emt 0:00:00]} c5 {[%emt 0:00:00]} 2. Nf3 {[%emt 0:00:00]} Nc6 {[%emt 0:00:00]} 3. d4 {[%emt 0:00:13]} cxd4 {[%emt 0:00:20]} 4. Nxd4 {[%emt 0:00:07]} e5 {[%emt 0:00:18]} 5. Nb5 {[%emt 0:00:10]} d6 {[%emt 0:00:14]} 6. N1c3 {[%emt 0:00:11]} a6 {[%emt 0:00:17]} 7. Na3 {[%emt 0:00:08]} Be7 {[%emt 0:00:11]} 8. Be3 {[%emt 0:00:13]} Nf6 {[%emt 0:00:24]} 9. Nc4 {[%emt 0:00:10]} b5 {[%emt 0:00:25]} 10. Nb6 {[%emt 0:00:13]} Rb8 {[%emt 0:00:08]} 11. Nxc8 {[%emt 0:00:05]} Qxc8 {[%emt 0:02:26]} 12. Be2 {[%emt 0:00:38]} O-O {[%emt 0:01:00]} 13. O-O {[%emt 0:05:23]} Rd8 {[%emt 0:06:10]} 14. a4 {[%emt 0:21:37]} d5 {[%emt 0:26:30]} 15. Nxd5 {[%emt 0:10:37]} Nxd5 {[%emt 0:02:28]} 16. exd5 {[%emt 0:00:09]} Nb4 {[%emt 0:00:49]} 17. axb5 {[%emt 0:02:26]} Nxd5 {[%emt 0:03:04]} 18. Bd2 {[%emt 0:08:19]} axb5 {[%emt 0:02:06]} 19. Bd3 {[%emt 0:00:17]} f5 {[%emt 0:11:47]} 20. Qe2 {[%emt 0:05:37]} e4 {[%emt 0:00:47]} 21. Bxb5 {[%emt 0:00:08]} Qxc2 {[%emt 0:00:16]} 22. Ba5 {[%emt 0:00:59]} Qxe2 {[%emt 0:01:24]} 23. Bxe2 {[%emt 0:00:10]} Rdc8 {[%emt 0:00:08]} 24. Rfc1 {[%emt 0:00:14]} Kf8 {[%emt 0:09:12]} 25. Bc4 {[%emt 0:23:26]} Nf4 {[%emt 0:02:40]} 26. g3 {[%emt 0:04:02]} Nd3 {[%emt 0:04:43]} 27. Bxd3 {[%emt 0:00:10]} exd3 {[%emt 0:00:06]} 28. Rxc8+ {[%emt 0:00:38]} Rxc8 {[%emt 0:00:08]} 29. Bc3 {[%emt 0:00:07]} Kf7 {[%emt 0:06:30]} 30. Ra7 {[%emt 0:12:55]} Ke6 {[%emt 0:01:17]} 31. Kg2 {[%emt 0:05:00]} Bf6 {[%emt 0:02:50]} 32. Kf3 {[%emt 0:00:12]} Bxc3 {[%emt 0:05:27]} 33. bxc3 {[%emt 0:00:02]} Rxc3 {[%emt 0:04:54]} 34. Rxg7 {[%emt 0:00:40]} d2+ {[%emt 0:00:24]} 35. Ke2 {[%emt 0:00:05]} Rf3 {[%emt 0:00:06]} 36. Rxh7 {[%emt 0:00:50]} Rxf2+ {[%emt 0:00:06]} 37. Kd1 {[%emt 0:00:03]} Rg2 {[%emt 0:00:55]} 38. Rh8 {[%emt 0:00:35]} Kf6 {[%emt 0:00:59]} 39. Rd8 {[%emt 0:00:28]} Rxh2 {[%emt 0:00:27]} 40. Rxd2 {[%emt 0:00:05]} Rh3 {[%emt 0:02:14]} 41. Rd3 {[%emt 0:30:08]} Kg5 {[%emt 0:30:59]} 42. Ke2 {[%emt 0:00:08]} Kg4 {[%emt 0:00:55]} 43. Rd4+ {[%emt 0:00:09]} Kxg3 {[%emt 0:00:06]} 44. Rd3+ {[%emt 0:00:04]} Kg4 {[%emt 0:00:08]} 45. Rxh3 {[%emt 0:00:05]} Kxh3 {[%emt 0:00:06]} 46. Kf3 {[%emt 0:00:03]} 1/2-1/2

[Event "EYTCC U18 Open 2019"]
[Site "Pardubice"]
[Date "2019.07.11"]
[Round "1.36"]
[White "Marn, Jan"]
[Black "Chylewski, Patryk"]
[Result "0-1"]
[ECO "E46"]
[WhiteElo "2215"]
[BlackElo "2376"]
[Annotator "NA"]
[PlyCount "74"]
[EventDate "2019.07.11"]
[EventType "swiss"]
[EventCountry "CZE"]
[SourceTitle "playchess.com"]
[Source "ChessBase"]
[SourceQuality "1"]
[WhiteTeam "Slovenia"]
[BlackTeam "Poland"]
[WhiteTeamCountry "SLO"]
[BlackTeamCountry "POL"]
[TimeControl "40/5400+30:1800+30"]

1. d4 {[%emt 0:00:00]} Nf6 {[%emt 0:00:00]} 2. c4 {[%emt 0:00:00]} e6 {[%emt 0:00:00]} 3. Nc3 {[%emt 0:00:00]} Bb4 {[%emt 0:00:00]} 4. e3 {[%emt 0:00:01]} O-O {[%emt 0:00:18]} 5. Nge2 {[%emt 0:00:11]} Re8 {[%emt 0:00:24]} 6. a3 {[%emt 0:00:29]} Bf8 {[%emt 0:00:09]} 7. Ng3 {[%emt 0:00:44]} d5 {[%emt 0:00:38]} 8. Be2 {[%emt 0:00:11]} b6 {[%emt 0:00:40]} 9. O-O {[%emt 0:02:27]} Bb7 {[%emt 0:00:08]} 10. Bf3 {[%emt 0:06:24]} Nbd7 {[%emt 0:08:08]} 11. e4 {[%emt 0:06:30]} dxc4 {[%emt 0:03:53]} 12. e5 {[%emt 0:11:24]} Nd5 {[%emt 0:06:06]} 13. Bxd5 {[%emt 0:18:00]} Bxd5 {[%emt 0:15:48]} 14. Nxd5 {[%emt 0:00:46]} exd5 {[%emt 0:00:05]} 15. Qg4 {[%emt 0:01:48]} c5 {[%emt 0:05:52]} 16. Bg5 {[%emt 0:01:36]} Qc7 {[%emt 0:05:07]} 17. Nf5 {[%emt 0:02:59]} Kh8 {[%emt 0:12:12]} 18. Bf4 {[%emt 0:04:50]} Qc6 {[%emt 0:03:03]} 19. Nd6 {[%emt 0:17:22]} Bxd6 {[%emt 0:00:54]} 20. exd6 {[%emt 0:02:10]} cxd4 {[%emt 0:04:49]} 21. Rfe1 {[%emt 0:07:52]} Nf6 {[%emt 0:01:39]} 22. Rxe8+ {[%emt 0:00:46]} Rxe8 {[%emt 0:00:34]} 23. Qf5 {[%emt 0:01:00]} Qd7 {[%emt 0:01:17]} 24. Qg5 {[%emt 0:00:41]} Qe6 {[%emt 0:09:11]} 25. f3 {[%emt 0:00:39]} Kg8 {[%emt 0:02:14]} 26. Bg3 {[%emt 0:01:10]} Qe3+ {[%emt 0:00:39]} 27. Qxe3 {[%emt 0:01:08]} dxe3 {[%emt 0:00:06]} 28. Kf1 {[%emt 0:00:06]} d4 {[%emt 0:01:46]} 29. Rc1 {[%emt 0:00:08]} b5 {[%emt 0:04:47]} 30. a4 {[%emt 0:00:04]} a6 {[%emt 0:00:20]} 31. axb5 {[%emt 0:00:53]} axb5 {[%emt 0:00:04]} 32. Ra1 {[%emt 0:00:20]} h6 {[%emt 0:06:52]} 33. Ra5 {[%emt 0:01:05]} d3 {[%emt 0:00:55]} 34. Ke1 {[%emt 0:06:18]} b4 {[%emt 0:04:00]} 35. Be5 {[%emt 0:01:07]} Nd7 {[%emt 0:00:06]} 36. Bf4 {[%emt 0:01:49]} c3 {[%emt 0:00:23]} 37. bxc3 {[%emt 0:00:35]} bxc3 {[%emt 0:00:05]} 0-1

[Event "EYTCC U18 Open 2019"]
[Site "Pardubice"]
[Date "2019.07.12"]
[Round "2.1"]
[White "Gazik, Viktor"]
[Black "Ozsakallioglu, Okan"]
[Result "1-0"]
[ECO "B75"]
[WhiteElo "2525"]
[BlackElo "2243"]
[Annotator "ChessBase"]
[PlyCount "52"]
[EventDate "2019.07.11"]
[EventType "swiss"]
[EventCountry "CZE"]
[SourceTitle "playchess.com"]
[Source "ChessBase"]
[SourceQuality "1"]
[WhiteTeam "Slovakia"]
[BlackTeam "Turkey"]
[WhiteTeamCountry "SVK"]
[BlackTeamCountry "TUR"]
[TimeControl "40/5400+30:1800+30"]

1. e4 {[%emt 0:00:00]} c5 {[%emt 0:00:00]} 2. Nc3 {[%emt 0:00:18]} d6 {[%emt 0:00:56]} 3. Nf3 {[%emt 0:02:21]} Nf6 {[%emt 0:01:35]} 4. d4 {[%emt 0:00:07]} cxd4 {[%emt 0:00:07]} 5. Nxd4 {[%emt 0:00:04]} g6 {[%emt 0:00:25]} 6. Be3 {[%emt 0:00:45]} Bg7 {[%emt 0:00:46]} 7. f3 {[%emt 0:00:07]} a6 {[%emt 0:00:04]} 8. Qd2 {[%emt 0:01:17]} h5 {[%emt 0:00:13]} 9. Be2 {[%emt 0:08:12]} Nbd7 {[%emt 0:01:55]} 10. O-O {[%emt 0:03:27]} b5 {[%emt 0:05:21]} 11. a4 {[%emt 0:10:03]} b4 {[%emt 0:07:01]} 12. Na2 {[%emt 0:13:01]} a5 {[%emt 0:13:52]} 13. c3 {[%emt 0:08:29]} bxc3 {[%emt 0:01:35]} 14. Nxc3 {[%emt 0:01:38]} Bb7 {[%emt 0:01:15]} 15. Bb5 {[%emt 0:01:00]} Rc8 {[%emt 0:02:54]} 16. Nb3 {[%emt 0:05:17]} O-O {[%emt 0:00:16]} 17. Rfd1 {[%emt 0:01:31]} Ne5 {[%emt 0:12:28]} 18. Ne2 {[%emt 0:03:23]} Ra8 {[%emt 0:13:15]} 19. Rac1 {[%emt 0:04:57]} Nfd7 {[%emt 0:15:50]} 20. h3 {[%emt 0:02:16]} Nf6 {[%emt 0:03:55]} 21. Ned4 {[%emt 0:04:25]} Kh7 {[%emt 0:01:16]} 22. Qe1 {[%emt 0:04:49]} e6 {[%emt 0:06:15]} 23. Bd2 {[%emt 0:03:28]} Bh6 {[%emt 0:05:44]} 24. Bxa5 {[%emt 0:02:24]} Qb8 {[%emt 0:02:04]} 25. Bc7 {[%emt 0:01:28]} Qa7 {[%emt 0:00:20]} 26. Bxd6 Ng8 1-0